Cogmind - Beta 16.1 @@@ ROGUE MODE // 2026.04.05 @ 19:00:15 Player: KURIIRI Result: Self-destructed Performance ------------- Evolutions (4) 2000 Regions Visited (6) 1200 Robots Destroyed (60) 300 Value Destroyed (1987) 1987 Prototype IDs (4) 80 Alien Tech Used (0) 0 Bonus (800) 800 TOTAL SCORE: 6367 Bonus ------- Registered with UFD 300 Met Optimus in HQ 500 Cogmind --------- Core Integrity 669/850 Matter 10/300 Energy 99/100 System Corruption 8% Temperature Cool (0) Movement Core (50) Location -6/Waste Parts ------- > --- POWER (1) -------- (None) > --- PROPULSION (4) --- (None) > --- UTILITY (5) ------ (None) > --- WEAPON (5) ------- (None) > --- INVENTORY (5) ---- Scrap Suit Matter Compressor (0) Improved Particle Charger Kinecellerator Peak State ------------ > --- POWER ------------ Cold Fusion Reactor > --- PROPULSION ------- Armored Treads Wheel Wheel Gravmag System > --- UTILITY ---------- Large Storage Unit Improved Particle Charger Heavy Armor Plating System Shield > --- WEAPON ----------- Gatling Laser Thermic Laser Barrage Gun Barrage Gun Heavy Machine Gun > --- INVENTORY -------- Deuterium Engine Fission Core Overtuned Treads Scrap Suit Compact Matter Pod Hardened Medium Armor Plating Hardened Medium Armor Plating Thermic Laser Thermic Laser Heavy Plasma Cannon Missile Launcher Improved Datajack Multitool Ripper [Rating: 55] Favorites ----------- Power Deuterium Engine Engine Deuterium Engine Power Core Light Nuclear Core Reactor Cold Fusion Reactor Propulsion Light Treads Treads Light Treads Leg Aluminum Leg Wheel Compact Wheel Hover Unit Gravmag System Utility Large Storage Unit Device Improved Heat Sink Storage Large Storage Unit Processor Advanced Visual Processing Unit Hackware System Shield Protection Scrap Shield Weapon Barrage Gun Energy Gun Subdweller Laser Energy Cannon Subdweller Beam Cannon Ballistic Gun Barrage Gun Launcher Missile Launcher Special Weapon Multitool Impact Weapon Maul Build | -11 -10 -10 -8 -8 -6 -6 ------- Run | Yrd Mat Sub Rec Scr Fac Was Slots Evolved 8 | . . . . . 8 . Power . | . . . . . . . Propulsion 2 | . . . . . 2 . Utility 3 | . . . . . 3 . Weapon 3 | . . . . . 3 . Parts Attached 64 | 3 9 19 5 6 22 . Power 4 | . 1 1 1 . 1 . Engine 2 | . 1 . 1 . . . Core 1 | . . 1 . . . . Reactor 1 | . . . . . 1 . Propulsion 15 | 2 . 5 3 2 3 . Treads 7 | 2 . 3 . . 2 . Leg . | . . . . . . . Wheel 7 | . . 2 3 2 . . Hover 1 | . . . . . 1 . Flight . | . . . . . . . Utility 16 | 1 3 2 . 2 8 . Device 8 | 1 2 . . 1 4 . Storage 2 | . 1 1 . . . . Processor 2 | . . . . . 2 . Hackware 1 | . . . . 1 . . Protection 3 | . . 1 . . 2 . Artifact . | . . . . . . . Weapon 29 | . 5 11 1 2 10 . Energy Gun 8 | . 2 1 . . 5 . Energy Cannon 9 | . 2 5 1 . 1 . Ballistic Gun 6 | . . 3 . 2 1 . Ballistic Cannon . | . . . . . . . Launcher 4 | . 1 1 . . 2 . Special Weapon 1 | . . . . . 1 . Impact Weapon 1 | . . 1 . . . . Slashing Weapon . | . . . . . . . Piercing Weapon . | . . . . . . . Special Melee Weapon . | . . . . . . . Unidentified Prototypes 2 | . . . . . 2 . Parts Lost 17 | . . 3 1 . 9 4 Power 2 | . . 1 1 . . . Propulsion 4 | . . . . . 3 1 Utility 4 | . . . . . 3 1 Weapon 7 | . . 2 . . 3 2 Highest Loss Streak 5 | . . 1 1 . 5 4 To Critical Strikes . | . . . . . . . Average Backups 16 | 6 11 11 32 19 12 9 Power . | 1 1 . 1 . 1 . Propulsion 4 | 4 4 3 9 4 . . Utility 4 | . 2 1 6 7 4 5 Weapon 6 | 1 3 5 14 5 3 . Tool/Special . | . . . . . . . Unused Backups 52 | . 4 9 5 23 3 8 Power 5 | . 1 . 1 1 1 1 Propulsion 11 | . . 1 2 8 . . Utility 14 | . . 1 1 6 1 5 Weapon 21 | . 3 7 1 8 1 1 Tool/Special 1 | . . . . . . 1 Average Slot Usage (%) 87 | . 100 91 80 80 86 63 Engine 8 | . 14 6 3 14 . . Core 3 | . . 7 6 . . . Treads 10 | . 28 17 . . 6 11 Wheel 15 | . . 10 28 28 11 . Device 5 | . 14 6 . 3 2 13 Storage 10 | . 14 8 14 10 6 6 Hackware 1 | . . . . 1 6 6 Protection 2 | . . 5 . . 5 . Energy Gun 7 | . 20 3 14 1 11 . Energy Cannon 11 | . 7 17 14 8 . 5 Ballistic Gun 6 | . . 6 . 10 17 5 Peak Build Rating 55 | 9 13 18 20 24 55 41 Average Rating 18 | 7 10 13 18 19 48 38 On Entrance 18 | 6 9 13 18 20 19 41 Avg Prop Armor Cover (%) 6 | . . 6 . . 7 8 Naked Turns 2 | . . . . . . 2 Heaviest Build 219 | 13 34 217 219 219 70 55 Greatest Support 40 | 40 40 40 32 32 38 20 Greatest Overweight (x) 21 | . . 21 8 6 6 13 Average Overweight (x) 2 | . . 2 6 2 3 2 Largest Inventory Capacity 35 | 8 15 35 35 35 15 15 Average Capacity 19 | 8 14 13 35 24 15 14 Most Carried 35 | 6 15 32 35 35 15 11 Average Carried 16 | 5 11 11 34 19 13 10 Final Capacity 35 | 8 15 35 35 15 15 5 Final Carried 35 | 4 15 32 35 15 11 5 Class Distribution -------------------- 39% | Mutant 33% | Hauler-Mutant 13% | Subdweller-Mutant 6% | Derelict-Tank Dominant Class ---------------- Mutant | -10/Materials Mutant | -10/Subcaves Hauler-Mutant | -8/Recycling Hauler-Mutant | -8/Scraptown Derelict-Tank | -6/Factory Gunner | -6/Waste Resources | -11 -10 -10 -8 -8 -6 -6 ----------- Run | Yrd Mat Sub Rec Scr Fac Was Matter Collected 1523 | 200 141 324 40 422 396 . Remotely . | . . . . . . . Salvage Created 2553 | 116 459 824 556 . 598 . Parts 123 | 4 30 42 25 . 22 . Haulers Intercepted 1 | . 1 . . . . . Recyclers Shooed 1 | . . . . . 1 . Parts Field Recycled . | . . . . . . . Retrieved Matter . | . . . . . . . Parts Self-Destructed 12 | . . 12 . . . . Prevented . | . . . . . . . Parts Restored . | . . . . . . . Kills | -11 -10 -10 -8 -8 -6 -6 ------- Run | Yrd Mat Sub Rec Scr Fac Was Combat Hostiles Destroyed 46 | . 10 20 6 . 10 . Guns 18 | . 3 4 3 . 8 . Cannons 16 | . 2 11 3 . . . AOE 9 | . 4 3 . . 2 . Classes Destroyed 14 | 2 5 2 2 . 3 . Worker 2 | . 2 . . . . . Builder 2 | . . . . . 2 . Tunneler 1 | 1 . . . . . . Hauler 1 | . 1 . . . . . Recycler 4 | 1 . . 3 . . . Watcher 4 | . 3 . . . 1 . Swarmer 7 | . 4 2 . . 1 . Grunt 9 | . 6 2 . . 1 . Brawler 2 | . . . . . 2 . Sentry 8 | . . . 5 . 3 . Demolisher 1 | . . . 1 . . . Hunter 3 | . . . . . 3 . Artisan 2 | . . 2 . . . . Subdweller 16 | . . 16 . . . . Best Kill Streak 4 | 2 3 4 2 . 4 . Combat Bots Only 4 | . 3 4 2 . 3 . Max Kills in Single Turn 3 | 1 2 2 1 . 3 . Gunslinging . | . . . . . . . Exploded 2 | . 2 2 . . 2 . Melee . | . . . . . . . Uniques/NPCs Destroyed . | . . . . . . . Combat | -11 -10 -10 -8 -8 -6 -6 -------- Run | Yrd Mat Sub Rec Scr Fac Was Hostile Shots Fired 271 | . 19 75 15 . 159 3 Missed 83 | . 7 21 6 . 49 . Hits 188 | . 12 54 9 . 110 3 Melee 3 | . . . . . . 3 Projectile 185 | . 12 54 9 . 110 . AOE 1 | . . . 1 . . . Critical Strikes 6 | . . 2 1 . 2 1 Damage Taken 3311 | . 224 1132 167 . 1641 147 Core 391 | . 19 146 45 . 130 51 Absorbed by Shields . | . . . . . . . Core Remaining (%) 58 | 100 . . . 16 . . Volleys Fired 175 | 4 45 77 18 . 31 . Largest 5 | 2 2 2 2 . 5 . Hottest 251 | 80 112 160 135 . 251 . Shots Fired 342 | 8 88 106 33 . 107 . Gun 235 | 8 78 35 15 . 99 . Cannon 98 | . 8 67 18 . 5 . Launcher 9 | . 2 4 . . 3 . Special . | . . . . . . . Kinetic 87 | . . 30 . . 57 . Thermal 164 | . 34 50 33 . 47 . Explosive 8 | . 2 3 . . 3 . Electromagnetic 83 | 8 52 23 . . . . Robot Hit Streak 19 | 5 14 13 12 . 19 . Robot Miss Streak 6 | 1 5 2 2 . 6 . Penetration Max . | . . . . . . . Secondary Targets 4 | . 1 1 . . 2 . Max Gunslinging Chain 1 | . 1 1 . . 1 . Shots Hit Robots 204 | 7 35 71 23 . 68 . Core Hits 98 | 3 22 27 9 . 37 . Critical Kills 2 | . . 2 . . . . Critical Parts Destroyed . | . . . . . . . Critical Strikes 9 | . 5 2 . . 2 . Burn 6 | . 4 . . . 2 . Meltdown 2 | . . 2 . . . . Corrupt 1 | . 1 . . . . . Melee Attacks 1 | . . 1 . . . . Impact 1 | . . 1 . . . . Slashing . | . . . . . . . Piercing . | . . . . . . . Sneak Attacks . | . . . . . . . Combat Hostiles . | . . . . . . . Follow-up Attacks . | . . . . . . . Damage Inflicted 5416 | 91 863 1867 542 . 2053 . Guns 2363 | 91 396 500 251 . 1125 . Cannons 1633 | . 154 1091 291 . 97 . Explosions 1378 | . 301 246 . . 831 . Melee . | . . . . . . . Ramming 42 | . 12 30 . . . . Kinetic 1054 | . . 419 . . 635 . Thermal 2423 | . 411 883 542 . 587 . Explosive 1196 | . 176 189 . . 831 . Electromagnetic 701 | 91 264 346 . . . . Impact . | . . . . . . . Slashing . | . . . . . . . Piercing . | . . . . . . . Highest Corruption 8 | . . . . . 4 8 Average Corruption 3 | . . . . . 3 7 Corruption Purged 2 | . . . . . 2 . Corruption Blocked . | . . . . . . . Effects 22 | . . . . . 18 4 Message Errors 5 | . . . . . 3 2 Matter Fused 5 | . . . . . 5 . Heat Flow Errors 1 | . . . . . 1 . Energy Discharges 4 | . . . . . 3 1 Data Loss (minor) 2 | . . . . . 2 . Data Loss (major) 2 | . . . . . 1 1 Weapon Failures 3 | . . . . . 3 . Overload Shots . | . . . . . . . Overflow Damage 111 | . . 36 8 . 67 . Projectiles 10 | . . 2 8 . . . Explosions 91 | . . 24 . . 67 . Melee 10 | . . 10 . . . . Knockbacks . | . . . . . . . Impact . | . . . . . . . Kinetic . | . . . . . . . Secondary . | . . . . . . . Self-Inflicted Damage 168 | . 91 77 . . . . Shots 7 | . 4 3 . . . . Rammed 5 | . 4 1 . . . . Targets Rammed 5 | . 4 1 . . . . Kicked . | . . . . . . . Crushed . | . . . . . . . Highest Temperature 507 | 72 216 99 249 . 507 . Average Temperature 104 | 38 72 18 69 . 190 . Received Heat Transfer 546 | . 60 273 45 . 168 . Effects 4 | . . . . . 4 . Energy Bleed 1 | . . . . . 1 . Short Circuit 2 | . . . . . 2 . Damage (minor) 1 | . . . . . 1 . Siege Activations . | . . . . . . . Martial Activations . | . . . . . . . Shielding Activations . | . . . . . . . Robots Disrupted . | . . . . . . . Combat Hostiles . | . . . . . . . Robots Corrupted . | . . . . . . . Combat Hostiles . | . . . . . . . Parts Fried 2 | . 1 1 . . . . Impact Corruptions 1 | . . 1 . . . . Robots Melted 3 | . 1 2 . . . . Combat Hostiles 3 | . 1 2 . . . . Parts Melted 8 | . 2 3 . . 3 . Heat Transferred 4547 | . 1247 1136 707 . 1457 . Parts Sabotaged . | . . . . . . . Parts Stolen . | . . . . . . . Parts Stripped . | . . . . . . . Power Chain Reactions 3 | . 2 1 . . . . Alert | -11 -10 -10 -8 -8 -6 -6 ------- Run | Yrd Mat Sub Rec Scr Fac Was Maximum Alert Level . | . . . . . . . Low Security (%) 100 | 100 100 . 100 . 100 100 Level 1 . | . . . . . . . Level 2 . | . . . . . . . Level 3 . | . . . . . . . Level 4 . | . . . . . . . Level 5 . | . . . . . . . High Security . | . . . . . . . Max Security . | . . . . . . . Peak Influence 134 | 10 134 . 80 . 75 7 Initial 24 | . . . 24 . . 7 Average 30 | 4 46 . 22 . 21 1 Influence Increases 1281 | 10 462 115 363 . 331 . Destroy 0b10 Robot/C 600 | . 200 80 120 . 200 . Destroy 0b10 Robot/NC 70 | 10 30 . 15 . 15 . Destroy Leader 120 | . 48 20 . . 52 . Successful Hack 102 | . 46 . 28 . 28 . Select Force Hacks 240 | . 60 . 180 . . . Disable Machine 90 | . 60 . . . 30 . Destroy Structure 29 | . 18 . 5 . 6 . Lose Combat Pursuer 30 | . . 15 15 . . . Influence Decreases 1281 | 10 396 129 415 . 309 22 Entered New Map 76 | . . 33 28 . . 15 Time Decay 1127 | 10 396 96 377 . 241 7 Lost Part 78 | . . . 10 . 68 . Squads Dispatched 6 | . 3 . . . 3 . Investigation 2 | . 2 . . . . . Extermination 1 | . . . . . 1 . Reinforcement 3 | . 1 . . . 2 . Assault . | . . . . . . . Garrison . | . . . . . . . Intercept . | . . . . . . . Searches Triggered . | . . . . . . . Construction Impeded 1 | . . . . . 1 . Haulers Reinforced . | . . . . . . . Active Scanning Responses . | . . . . . . . Cargo Convoy Interrupts . | . . . . . . . Stealth | -11 -10 -10 -8 -8 -6 -6 --------- Run | Yrd Mat Sub Rec Scr Fac Was Distress Signals 2 | . 2 . . . . . Communications Jammed . | . . . . . . . Distress Signals . | . . . . . . . Times Spotted 61 | . 15 21 6 . 16 3 Peak Tracking Total 6 | . 3 4 3 . 6 4 Tactical Retreats 3 | . 1 1 1 . . . Traps | -11 -10 -10 -8 -8 -6 -6 ------- Run | Yrd Mat Sub Rec Scr Fac Was Traps Triggered 5 | . . 1 . . 4 . Indirectly . | . . . . . . . Trap Hack Attempts . | . . . . . . . Triggered . | . . . . . . . Disarmed . | . . . . . . . Reprogrammed . | . . . . . . . Reused . | . . . . . . . Traps Extracted . | . . . . . . . Installed . | . . . . . . . Triggered . | . . . . . . . Machines | -11 -10 -10 -8 -8 -6 -6 ---------- Run | Yrd Mat Sub Rec Scr Fac Was Machines Disabled 6 | . 4 . . . 2 . Max in Single Turn 2 | . 2 . . . 1 . Garrison Access 2 | . . . . . 2 . Machines Repaired . | . . . . . . . Machines Dismantled . | . . . . . . . Machines Sabotaged . | . . . . . . . Overloaded Fab Kills . | . . . . . . . Hacking | -11 -10 -10 -8 -8 -6 -6 --------- Run | Yrd Mat Sub Rec Scr Fac Was Machines Accessed 31 | . 9 1 12 4 5 . Terminals 16 | . 7 . 6 . 3 . Fabricators . | . . . . . . . Repair Stations . | . . . . . . . Recycling Units 8 | . 2 . 6 . . . Scanalyzers . | . . . . . . . Garrison Access 2 | . . . . . 2 . Total Hacks 97 | . 25 4 39 17 12 . Successful 63 | . 14 4 22 17 6 . Failed 33 | . 11 . 16 . 6 . Catastrophic 2 | . . . 2 . . . Database Lockouts 1 | . . . 1 . . . Manual 62 | . 25 . 28 . 9 . Terminals 50 | . 22 . 20 . 8 . Fabricators . | . . . . . . . Repair Stations . | . . . . . . . Recycling Units 22 | . 3 . 19 . . . Scanalyzers . | . . . . . . . Garrison Access 4 | . . . . . 4 . Terminal Hacks 27 | . 3 4 3 17 . . Record 21 | . . 4 . 17 . . Robot Analysis 4 | . 2 . 2 . . . Prototype ID Bank 1 | . . . 1 . . . Terminal Index 1 | . 1 . . . . . Fabricator Hacks . | . . . . . . . Repair Station Hacks . | . . . . . . . Recycling Unit Hacks 3 | . . . 3 . . . Retrieve Components 3 | . . . 3 . . . Scanalyzer . | . . . . . . . Garrison Access Hacks 2 | . . . . . 2 . Seal Access 2 | . . . . . 2 . Unauthorized Hacks 31 | . 11 . 16 . 4 . Terminals 23 | . 9 . 10 . 4 . Botnet 7 | . 2 . 4 . 1 . Disrupt 1 | . . . 1 . . . Operators 1 | . 1 . . . . . Skim 14 | . 6 . 5 . 3 . Fabricators . | . . . . . . . Repair Stations . | . . . . . . . Recycling Units 8 | . 2 . 6 . . . Tunnel 8 | . 2 . 6 . . . Scanalyzers . | . . . . . . . Garrison Access . | . . . . . . . Data Cores Recovered . | . . . . . . . Used . | . . . . . . . Hacking Detections 19 | . 7 . 8 . 4 . Full Trace Events . | . . . . . . . Feedback Events . | . . . . . . . Feedback Blocked . | . . . . . . . Robot Schematics Acquired . | . . . . . . . Robots Built . | . . . . . . . Authchips . | . . . . . . . Time . | . . . . . . . Total Robot Build Rating . | . . . . . . . Part Schematics Acquired . | . . . . . . . Parts Built . | . . . . . . . Authchips . | . . . . . . . Time . | . . . . . . . Total Part Build Rating . | . . . . . . . Part Studies Acquired . | . . . . . . . Parts Repaired . | . . . . . . . Time . | . . . . . . . Parts Recycled . | . . . . . . . Recycled Matter . | . . . . . . . Retrieved Matter . | . . . . . . . Retrieved Components 9 | . . . 9 . . . Parts Scanalyzed . | . . . . . . . Part Schematics Acquired . | . . . . . . . Parts Damaged . | . . . . . . . Bothacking | -11 -10 -10 -8 -8 -6 -6 ------------ Run | Yrd Mat Sub Rec Scr Fac Was Used RIF Installer . | . . . . . . . Robots Hacked . | . . . . . . . Non-combat . | . . . . . . . Combat . | . . . . . . . Robot Hacks Applied . | . . . . . . . Relay Couplers Released . | . . . . . . . Fabnet Peak Effective % . | . . . . . . . Robots Rewired . | . . . . . . . Allies Hacked . | . . . . . . . Hacks Repelled . | . . . . . . . Allies | -11 -10 -10 -8 -8 -6 -6 -------- Run | Yrd Mat Sub Rec Scr Fac Was Total Allies . | . . . . . . . Largest Group . | . . . . . . . Highest-Rated Group . | . . . . . . . Highest-Rated Ally . | . . . . . . . Initial UFD Resources 22 | . . . . . 22 22 Total Orders . | . . . . . . . Ally Attacks . | . . . . . . . Total Damage . | . . . . . . . Kills . | . . . . . . . Allies Corrupted . | . . . . . . . Allies Melted . | . . . . . . . Intel | -11 -10 -10 -8 -8 -6 -6 ------- Run | Yrd Mat Sub Rec Scr Fac Was Active Infowar (turns) 669 | 11 273 . . . 385 . Optics 385 | . . . . . 385 . Terrain 284 | 11 273 . . . . . Robot Analysis Total 4 | . 2 . 2 . . . Derelict Logs Recovered 7 | . . 2 . 5 . . Drone Launches . | . . . . . . . Drone Recoveries . | . . . . . . . Exploration | -11 -10 -10 -8 -8 -6 -6 ------------- Run | Yrd Mat Sub Rec Scr Fac Was Turns Passed 9768 | 27 1337 3618 1214 2541 938 93 Spaces Moved 5107 | 9 627 1672 561 1703 514 21 Core 5 | . . . . . . 5 Treads 1514 | 2 627 856 . . 13 16 Legs 7 | 7 . . . . . . Wheels 3579 | . . 816 561 1703 499 . Hover 2 | . . . . . 2 . Flight . | . . . . . . . Fastest Speed 50 | 120 160 80 179 95 110 50 Average Speed 157 | 128 160 167 185 142 130 294 Slowest Speed 700 | 160 160 395 210 190 450 700 Overloaded Moves . | . . . . . . . Propulsion Burnouts . | . . . . . . . Robots Hopped . | . . . . . . . Potential Cave-ins . | . . . . . . . Cave-ins Triggered . | . . . . . . . Exploration Rate (%) 59 | 2 96 86 97 90 16 29 Regions Visited 6 Branch Regions 3 Pre-discovered Areas 13 | . 3 . 9 1 . . Known Exits Taken 3 | . 1 1 . 1 . . Unknown Exits Taken 2 | 1 . . 1 . . . Scrap Searched 16 | . . 12 . 4 . . Spaces Dug 1 | . . 1 . . . . Terrain Destroyed 48 | . 16 20 5 . 7 . Melee . | . . . . . . . Projectile 11 | . . 5 5 . 1 . AOE 37 | . 16 15 . . 6 . Terrain Rammed . | . . . . . . . Walls Destroyed . | . . . . . . . Machines Disabled . | . . . . . . . Actions | -11 -10 -10 -8 -8 -6 -6 --------- Run | Yrd Mat Sub Rec Scr Fac Was Total 6576 | 17 869 2377 706 1841 714 52 Wait 1009 | . 165 527 102 57 127 31 Move 5103 | 8 626 1672 560 1702 514 21 Hop . | . . . . . . . Pick Up 99 | . 12 43 10 26 8 . Fast Attach 30 | 1 4 8 4 3 10 . Attach 14 | 2 . 3 . 1 8 . Detach 2 | . . 1 1 . . . Swap 29 | . 6 13 1 3 6 . Drop 103 | 2 7 26 10 49 9 . Fire 175 | 4 45 77 18 . 31 . Melee 1 | . . 1 . . . . Ram . | . . . . . . . Kick . | . . . . . . . Crush 4 | . 4 . . . . . Escape Stasis . | . . . . . . . Rewire . | . . . . . . . Trap . | . . . . . . . Miscellaneous 7 | . . 6 . . 1 . Route ------- -11/Scrapyard -10/Materials (discovered 5 exits: [*Mat x3] / [*Min] / *Sub) -10/Subcaves (discovered 4 exits: *Mat x2 / *Rec / *Scr) -8/Recycling (discovered 2 exits: *Fac / *Scr) -8/Scraptown (discovered 2 exits: *Fac x2) -6/Factory (discovered 3 exits: Fac x2 / *Low) -6/Waste History --------- Turn | Location | Event 14 | -11/Scrapyard | Discovered new exit (range 3) 28 | -11/Scrapyard | Entered Materials 322 | -10/Materials | Build established: Mutant 323 | -10/Materials | Discovered new exit (range 16) 628 | -10/Materials | Derelicts attacked the area 703 | -10/Materials | Discovered new exit (range 15) 948 | -10/Materials | Discovered new exit (range 16) 1033 | -10/Materials | Learned Storage emergency access door positions 1088 | -10/Materials | Discovered new exit (range 13) 1095 | -10/Materials | Identified exit to Subcaves 1149 | -10/Materials | Learned location of 2 exits from Subcaves 1291 | -10/Materials | Learned Storage emergency access door positions 1341 | -10/Materials | Learned Storage stockpile data 1365 | -10/Materials | Entered Subcaves 1366 | -10/Subcaves | Approached by a straggling Scientist 1366 | -10/Subcaves | Identified exit to Materials 1366 | -10/Subcaves | Identified exit to Recycling 1375 | -10/Subcaves | A swath of the cavern ceiling suddenly collapsed 1602 | -10/Subcaves | Scientist uncovered a shortcut to Scraptown 1812 | -10/Subcaves | A swath of the cavern ceiling suddenly collapsed 1968 | -10/Subcaves | Curiously followed by a Cobbler waking with a query about "LVR3C" 2191 | -10/Subcaves | Ambushed by Subdwellers from Twisted Machinery 2200 | -10/Subcaves | Shifting Twisted Machinery released Battle Cannon 2767 | -10/Subcaves | Visited Clippyterm 2772 | -10/Subcaves | Learned Factory fabricator intel 2772 | -10/Subcaves | Learned Research security intel 2937 | -10/Subcaves | Shifting Twisted Machinery released Mak. Axe 3028 | -10/Subcaves | Core integrity fell below 50% 3168 | -10/Subcaves | Shifting Twisted Machinery released Scrap Shield 3173 | -10/Subcaves | Shifting Twisted Machinery released Sub. Beam Cannon 3336 | -10/Subcaves | Learned Materials emergency access door positions 3342 | -10/Subcaves | Build established: Subdweller-Mutant 3391 | -10/Subcaves | Ambushed by angry Subdweller bent on revenge 3572 | -10/Subcaves | Disturbed a concealed Subdweller 4746 | -10/Subcaves | Build established: Hauler-Mutant 4983 | -10/Subcaves | Entered Recycling 5323 | -8/Recycling | Discovered new exit (range 16) 5744 | -8/Recycling | Core integrity fell below 20% 5787 | -8/Recycling | Learned location of Lower Caves (-7) 5861 | -8/Recycling | Learned location of 1 exit from Extension 5880 | -8/Recycling | Learned 4 Factory zone layouts 5888 | -8/Recycling | Learned location of Storage (-8) 5890 | -8/Recycling | Learned location of 1 exit from Storage 5896 | -8/Recycling | Learned Storage trap positions 5912 | -8/Recycling | Learned 4 Factory zone layouts 6153 | -8/Recycling | Scanned before Scraplab entrance 6180 | -8/Recycling | Entered Scraplab 6195 | -8/Recycling | Discovered new exit (range 2) 6197 | -8/Recycling | Entered Scraptown 6198 | -8/Scraptown | Identified exit to Factory 6321 | -8/Scraptown | Visited UFD Registry 6321 | -8/Scraptown | Registered with UFD as "Datasourcer" 6348 | -8/Scraptown | Visited CPS Storage 6363 | -8/Scraptown | Visited Cyclists 6378 | -8/Scraptown | Entered Cyclist Reading Room 6431 | -8/Scraptown | Visited IN-MT5's Study 6496 | -8/Scraptown | Scanned Subdweller tech in exchange for log data 6500 | -8/Scraptown | Learned Research stockpile data 6503 | -8/Scraptown | Learned Factory stockpile data 6505 | -8/Scraptown | Learned 8 Factory zone layouts 6507 | -8/Scraptown | Learned Research security intel 7220 | -8/Scraptown | Visited Assassins FH 7286 | -8/Scraptown | Visited Scrapoid Research Area 7385 | -8/Scraptown | Visited Abandonware Association 7408 | -8/Scraptown | Learned abandonware demo "HACKBUD.EXE" 7480 | -8/Scraptown | Delivered Scrap Shield to a Scientist 7624 | -8/Scraptown | Visited DA-N13 Charitable Foundation 7642 | -8/Scraptown | Found DCF Scrap (29 items) 7679 | -8/Scraptown | Visited Scrapoid Pod Storage 7722 | -8/Scraptown | Visited Junk Repository 7766 | -8/Scraptown | Found Scrapoid Pod 7907 | -8/Scraptown | Visited TADAMA 7933 | -8/Scraptown | Visited Shadow of the Wyrm 8043 | -8/Scraptown | Build established: Mutant 8157 | -8/Scraptown | Visited Red Mages 8234 | -8/Scraptown | Visited Observation Area 8250 | -8/Scraptown | Visited A0-MCA Data Center 8280 | -8/Scraptown | Given a B+ rating by A0-MCA 8298 | -8/Scraptown | Visited Research Penetration Think Tank 8578 | -8/Scraptown | Found Scrap Suit 8657 | -8/Scraptown | Met Optimus 8657 | -8/Scraptown | Accepted into 0bPrime 8738 | -8/Scraptown | Entered Factory 8738 | -6/Factory | Evolved 8 slots: Propulsion x2, Utility x3, Weapon x3 8739 | -6/Factory | Identified exit to Factory 8739 | -6/Factory | Identified exit to Lower Caves 8742 | -6/Factory | Loaded intel: 6 fabricator locations 9024 | -6/Factory | Build established: Derelict-Tank 9197 | -6/Factory | Found Prototype Launcher 9197 | -6/Factory | Identified Rocket Array 9567 | -6/Factory | Lost 4 parts (1n2u1w) 9676 | -6/Factory | Sucked down chute 9676 | -6/Factory | Entered Waste 9691 | -6/Waste | EMP discharged 9703 | -6/Waste | Lost 5 parts (2n1u2w) 9735 | -6/Waste | Spotted C-40 Crusher 9759 | -6/Waste | Crushed by Compactor (1 part destroyed, 2 dropped) 9763 | -6/Waste | Spotted C-40 Crusher 9764 | -6/Waste | Crushed by Compactor (1 part destroyed, 2 dropped) 9767 | -6/Waste | Crushed by Compactor (1 part destroyed, 2 dropped) 9769 | -6/Waste | Spotted C-40 Crusher 9769 | -6/Waste | Self-destructed Last Messages --------------- 09691_ System corrupted (+6). 09691_ Broken Imp. Gyrokinetic Inverter fried beyond repair. 09699_ System corrupted: Substantial component data lost. 09728_ 8GORMHBFK&RQUZ1XRDSPJXR G 09751_ System corrupted: Energy discharge (-80). 09759_ Hvy. Plasma Cannon crushed. 09759_ Hvy. Machine Gun crushed. 09759_ Ovr. Treads crushed. 09759_ Arm. Treads destroyed. 09764_ Hvy. Machine Gun crushed. 09764_ Ovr. Treads crushed. 09764_ Missile Launcher crushed. 09764_ Cold Fusion Reactor crushed. 09764_ Coolant Injector crushed. 09766_ S8